fUSD/lending_fUSD_20240521
["ID","MTS","AMOUNT","RATE_DAILY","PERIOD"]
[327672161,1716304235147,-155.58671958,0.0003,4]
[327672162,1716304235156,-1126.36374221,0.0003,2]
[327672163,1716304235171,-1273.0512007,0.0003,2]
[327672164,1716304235181,-250.0,0.000301,15]
[327672165,1716304235191,-1000.0,0.00030343,2]
[327672166,1716304235200,-151.1162498,0.00031099,2]
[327672167,1716304235210,-14905.78475662,0.00031346,2]
[327672168,1716304235219,-167.04779388,0.00031695,120]
[327672169,1716304235329,-18.18220612,0.00031695,120]
[327672170,1716304235338,-31.29600153,0.00031806,2]
[327672171,1716304235350,-708.49399847,0.00031806,2]
[327672172,1716304235359,-150.0,0.00031865,4]
[327672173,1716304235368,-313.36763717,0.00032184,7]
[327672174,1716304235376,-154.49321243,0.00032671,7]
[327672175,1716304235385,-4831.2401519,0.00032955,2]
[327672176,1716304235397,-925.7598481,0.00032955,2]
[327672177,1716304235406,-9.35665201,0.00032955,2]
[327672194,1716304239314,-279.64334799,0.00032955,2]
[327672195,1716304239325,-1465.0,0.00032955,2]
[327672196,1716304239335,-13128.65479471,0.00032955,2]
[327672197,1716304239348,-689.35690837,0.00032955,2]
[327672198,1716304239361,-965.08129649,0.00032955,2]
[327672199,1716304239374,-8750.44489297,0.00032955,2]
[327672200,1716304239386,-720.02845553,0.00032955,2]
[327672201,1716304239398,-984.28875588,0.00032955,2]
[327672202,1716304239410,-994.2119003,0.00032955,2]
[327672203,1716304239501,-3e-08,0.00032955,2]
[327672204,1716304239514,-415.0641406,0.00032955,2]
[327672205,1716304239528,-275.8403257,0.00032955,2]
[327672206,1716304240323,-10962.02852942,0.00032955,2]
[327672208,1716304240333,-5132.0,0.00032955,2]
[327672210,1716304240343,-1061.0,0.00032955,2]
[327672211,1716304240353,-14905.78475662,0.00033373,2]
[327672212,1716304240364,-3896.95,0.000335,2]
[327672213,1716304240374,-3896.95,0.000335,2]
[327672214,1716304240384,-3896.95,0.000335,2]
[327672215,1716304240394,-3896.95,0.000335,2]
[327672216,1716304240404,-3896.95,0.000335,2]
[327672217,1716304240418,-3896.95,0.000335,2]
[327672218,1716304240429,-3896.95,0.000335,2]
[327672219,1716304240438,-3896.95,0.000335,2]
[327672220,1716304240449,-3896.95,0.000335,2]
[327672221,1716304240459,-3896.95,0.000335,2]
[327672222,1716304240470,-3896.95,0.000335,2]
[327672223,1716304240479,-2031.16822637,0.000335,2]
[327672224,1716304240492,-1865.78177363,0.000335,2]
[327672225,1716304240502,-1771.42340319,0.000335,2]
[327672226,1716304240516,-2125.52659681,0.000335,2]
[327672227,1716304240525,-3896.95,0.000335,2]
[327672228,1716304240535,-3896.95,0.000335,2]
[327672229,1716304240545,-3896.95,0.000335,2]
[327672230,1716304240555,-3896.95,0.000335,2]
[327672231,1716304240565,-3896.95,0.000335,2]
[327672232,1716304240575,-3896.95,0.000335,2]
[327672233,1716304240586,-3896.95,0.000335,2]
[327672234,1716304240596,-153.35,0.000335,2]
[327672235,1716304240607,-153.35,0.000335,2]
[327672236,1716304240617,-153.35,0.000335,2]
[327672237,1716304240628,-153.35,0.000335,2]
[327672238,1716304240638,-153.35,0.000335,2]
[327672239,1716304240648,-153.35,0.000335,2]
[327672240,1716304240659,-153.35,0.000335,2]
[327672241,1716304240674,-153.35,0.000335,2]
[327672242,1716304240684,-153.35,0.000335,2]
[327672243,1716304240694,-153.35,0.000335,2]
[327672244,1716304240704,-153.35,0.000335,2]
[327672245,1716304240715,-153.35,0.000335,2]
[327672246,1716304240725,-288.10577,0.0003353,2]
[327672247,1716304240735,-11046.2475,0.0003378,2]
[327672248,1716304240745,-174.44609528,0.0003378,6]
[327672249,1716304240755,-13618.99279831,0.0003378,6]
[327672250,1716304240765,-168.96764124,0.000338,2]
[327672251,1716304240776,-166.86465894,0.00033878,4]
[327672252,1716304240786,-268.32530534,0.00033878,4]
[327672253,1716304240796,-344.46064824,0.00033878,4]
[327672254,1716304240806,-155.0,0.00033878,4]
[327672255,1716304240816,-12687.18198767,0.00033878,4]
[327672256,1716304240826,-168.49169477,0.00033878,4]
[327672257,1716304240836,-155.0,0.00033878,4]
[327672258,1716304240850,-4860.25209811,0.00033878,2]
[327672259,1716304240860,-296.06702621,0.00033878,4]
[327672260,1716304240870,-778.49405773,0.00033878,4]
[327672261,1716304240881,-14334.64073589,0.0003388,17]
[327672262,1716304240897,-2747.94498473,0.0003388,17]
[327672263,1716304240910,-395.51880078,0.0003388,17]
[327672264,1716304240927,-8184.05343231,0.0003388,17]
[327672265,1716304240938,-48304.57006764,0.0003388,14]
[327672266,1716304240950,-2362.72993992,0.0003388,14]
[327672280,1716304241186,-51187.76552057,0.0003388,14]
[327672282,1716304241198,-35125.0,0.0003388,14]
[327672287,1716304241727,-5507.7171,0.0003388,14]
[327672288,1716304241740,-868.08886022,0.0003388,14]
[327672289,1716304241752,-678.32199808,0.0003388,14]
[327672361,1716304245612,-1405.2,0.0003388,14]
[327672362,1716304245624,-5018.85359765,0.0003388,14]
[327672363,1716304245636,-621.03888324,0.0003388,14]
[327672364,1716304245647,-17926.1909809,0.0003388,14]
[327672365,1716304245659,-2520.71574292,0.0003388,14]
[327672366,1716304245673,-3418.33248842,0.0003388,14]
[327672367,1716304245684,-2407.06177943,0.0003388,14]
[327672368,1716304245778,-6218.39108876,0.0003388,14]
[327672369,1716304245789,-13079.91519771,0.0003388,14]
[327672370,1716304245800,-421.834,0.0003388,14]
[327672374,1716304246931,-20266.45882654,0.0003388,14]
[327672375,1716304246943,-25574.52361261,0.0003388,14]
[327672376,1716304246958,-2602.0,0.0003388,14]
[327672385,1716304247332,-210749.99999992,0.0003388,14]
[327672386,1716304247344,-886.8,0.0003388,14]
[327672387,1716304247355,-2020.19087683,0.0003388,14]
[327672388,1716304247367,-66524.55418928,0.0003388,14]
[327672389,1716304247379,-551.29697962,0.0003388,14]
[327672390,1716304247390,-1567.830044,0.0003388,14]
[327672391,1716304247402,-281.409696,0.0003388,14]
[327672392,1716304247414,-320.65837188,0.0003388,14]
[327672393,1716304247428,-16005.0,0.0003388,14]
[327672394,1716304247569,-809.68945,0.0003388,14]
[327672395,1716304247581,-67175.03979184,0.0003388,14]
[327672396,1716304247592,-128604.17286004,0.0003388,14]
[327672397,1716304247604,-464.25,0.0003388,14]
[327672403,1716304383608,158.19,0.00026157,120]
[327672404,1716304383979,158.19,0.00029426,120]
[327672414,1716305137230,-460.637529,0.00016867,2]
[327672415,1716305359173,-803.82734863,0.00016745,2]
[327672416,1716305359198,-1227.04758271,0.00016746,2]
[327672417,1716305359224,-155.0,0.00016746,2]
[327672418,1716305359245,-155.0,0.00016746,2]
[327672419,1716305359266,-1248.71859161,0.00016746,2]
[327672420,1716305359291,-446.72141582,0.00016746,2]
[327672421,1716305359314,-1064.16497992,0.00016747,2]
[327672422,1716305359336,-5900.0,0.00016747,2]
[327672423,1716305359357,-535.88765417,0.00016747,2]
[327672424,1716305359380,-4278.30589231,0.00016747,2]
[327672425,1716305359402,-1179.9258354,0.00016748,2]
[327672426,1716305359423,-155.0,0.00016748,2]
[327672427,1716305359771,-207.45919939,0.00016749,2]
[327672428,1716305359799,-818.37489611,0.00016749,2]
[327672429,1716305359820,-2222.64085019,0.0001675,2]
[327672430,1716305359842,-1790.00464579,0.0001675,2]
[327672431,1716305359865,-19498.47414158,0.00016754,2]
[327672432,1716305359886,-534.72584194,0.00016762,2]
[327672433,1716305359907,-516.30358521,0.00016763,2]
[327672434,1716305359929,-312.94,0.00016763,2]
[327672435,1716305359950,-203.3044281,0.00016768,2]
[327672436,1716305359971,-947.14,0.00016768,2]
[327672437,1716305359992,-659.46,0.00016876,3]
[327672438,1716305360014,-47434.01976491,0.00016886,2]
[327672439,1716305361107,-14663.89931205,0.00016886,2]
[327672440,1716305365101,-26922.59323264,0.00016886,2]
[327672441,1716305366114,-803.73333912,0.00016886,2]
[327672442,1716305366144,-38269.96481488,0.00016886,2]
[327672443,1716305366167,-4991.41,0.00016886,6]
[327672444,1716305366188,-153.8690423,0.000169,2]
[327672445,1716305366212,-1949.38,0.00016902,2]
[327672446,1716305366233,-1280.12,0.00016931,2]
[327672447,1716305366256,-5079.69634499,0.00017,2]
[327672448,1716305423159,156.34,0.00013973,2]
[327672449,1716305425997,5079.69634499,0.00017034,2]
[327672450,1716305431764,155.0,0.00017033,2]
[327672457,1716305432700,-0.14402851,0.0001714,2]
[327672458,1716305432713,-332.53138128,0.0001714,2]
[327672459,1716305432725,-731.48957013,0.0001714,2]
[327672460,1716305432735,-5900.0,0.00017141,2]
[327672461,1716305432745,-1339.11091413,0.00017142,2]
[327672462,1716305432755,-421.10104427,0.00017142,2]
[327672463,1716305432764,-2346.722,0.00017143,2]
[327672464,1716305432773,-879.73,0.00017143,2]
[327672465,1716305432782,-3197.82,0.00017143,2]
[327672466,1716305432792,-1298.04,0.00017143,2]
[327672467,1716305432801,-264.89578297,0.00017234,2]
[327672468,1716305432810,-1153.58408965,0.00017234,2]
[327672469,1716305432820,-158.68141083,0.00017234,2]
[327672470,1716305432829,-520.14135908,0.00017235,2]
[327672471,1716305432839,-1345.02804757,0.00017235,2]
[327672472,1716305432848,-1139.93400252,0.00017235,2]
[327672473,1716305432857,-446.54380812,0.00017235,2]
[327672474,1716305432867,-803.82734863,0.00017235,2]
[327672475,1716305432876,-176.61826325,0.00017235,2]
[327672476,1716305432885,-4465.45784686,0.00017236,2]
[327672477,1716305432895,-307.0,0.00017236,2]
[327672478,1716305432904,-499.99,0.00017236,2]
[327672479,1716305432913,-4688.31,0.00017236,2]
[327672480,1716305432923,-1537.16993726,0.00017241,2]
[327672481,1716305432932,-999.99,0.00017241,2]
[327672482,1716305432941,-162.75297053,0.00017241,2]
[327672483,1716305432951,-1849.862771,0.00017242,2]
[327672484,1716305432961,-173.4050622,0.00017243,2]
[327672485,1716305432970,-41303.14746364,0.00017243,2]
[327672486,1716305432980,-231.81452124,0.00017243,2]
[327672487,1716305432989,-945.10469886,0.00017243,2]
[327672488,1716305432999,-318.72,0.00017243,2]
[327672489,1716305433009,-210.2,0.00017244,2]
[327672490,1716305433018,-150.99,0.00017534,2]
[327672491,1716305433028,-596.26,0.00018591,2]
[327672492,1716305433038,-3880.70724069,0.000192,2]
[327672493,1716305433047,-792.26,0.00020112,2]
[327672494,1716305433057,-1165.9,0.00020163,2]
[327672495,1716305433066,-198.44,0.0002031,2]
[327672496,1716305433076,-1103.75,0.00020413,2]
[327672497,1716305433085,-158.22,0.00020478,2]
[327672498,1716305433094,-2000.0,0.0002048,2]
[327672501,1716305433104,-1471.09,0.00020516,2]
[327672504,1716305433114,-17088.51,0.00020619,2]
[327672507,1716305433123,-250.0,0.00020664,2]
[327672510,1716305433132,-158.22,0.00020692,2]
[327672513,1716305433141,-596.26,0.00020855,2]
[327672516,1716305433151,-158.22,0.00020905,2]
[327672518,1716305433160,-158.22,0.00021119,2]
[327672521,1716305433170,-158.22,0.00021332,2]
[327672524,1716305433179,-158.22,0.00021545,2]
[327672527,1716305433189,-3409.87,0.00021564,2]
[327672530,1716305433199,-250.0,0.00021762,2]
[327672532,1716305433209,-175.59,0.00021918,2]
[327672535,1716305433220,-198.8,0.00021918,2]
[327672537,1716305433235,-8441.99892298,0.00022679,2]
[327672538,1716305433248,-7034.0,0.00022679,2]
[327672543,1716305438808,-756.96152999,0.00022679,2]
[327672546,1716305438821,-7667.03954703,0.00022679,2]
[327672548,1716305438830,-150.0,0.00022792,2]
[327672549,1716305438840,-172.28,0.00023105,2]
[327672550,1716305438850,-1000.0,0.00023117,2]
[327672551,1716305438859,-596.26,0.00023119,2]
[327672552,1716305438868,-1471.09,0.00023256,2]
[327672553,1716305438877,-250.0,0.00024658,2]
[327672554,1716305438889,-9828.00010758,0.00024889,2]
[327672555,1716305438898,-9828.00010756,0.00024889,2]
[327672556,1716305438908,-9828.00010756,0.00024889,2]
[327672557,1716305438919,-9828.00010756,0.00024889,2]
[327672558,1716305438928,-15377.7330057,0.00025,2]
[327672559,1716305438940,-1765.85166354,0.00025,2]
[327672560,1716305438951,-366.11976334,0.00025,2]
[327672561,1716305438964,-355.29556742,0.00025,2]
[327672562,1716305438974,-402.65321491,0.00025059,2]
[327672563,1716305438984,-425.12106461,0.00025059,2]
[327672564,1716305438996,-7173.37470174,0.00025059,2]
[327672565,1716305439222,-0.43462812,0.00025059,2]
[327672566,1716305440408,-325.93999993,0.00025059,2]
[327672569,1716305440426,-1500.47649825,0.00025059,2]
[327672571,1716305440437,-596.26,0.00025383,2]
[327672575,1716305440447,-11716.0,0.000257,3]
[327672577,1716305440456,-178.03184867,0.00025896,2]
[327672579,1716305440467,-1471.09,0.00025996,2]
[327672581,1716305440476,-1000.0,0.00026007,2]
[327672583,1716305440486,-11716.0,0.000264,5]
[327672586,1716305440496,-152.20246737,0.00026934,2]
[327672588,1716305440507,-9828.00010756,0.00027127,2]
[327672590,1716305440517,-178.03184864,0.00027182,2]
[327672592,1716305440527,-804.21274152,0.0002739,2]
[327672594,1716305440538,-168.42,0.00027397,2]
[327672596,1716305440548,-1797.1,0.00027397,2]
[327672598,1716305440558,-596.26,0.00027646,2]
[327672599,1716305440568,-178.03184864,0.00028469,2]
[327672600,1716305440578,-1000.0,0.00028896,2]
[327672601,1716305440588,-6318.68732655,0.00029195,2]
[327672618,1716305441081,-2185.16867197,0.00029195,2]
[327672619,1716305441112,-0.600725,0.00029195,2]
[327672620,1716305441123,-434.63638808,0.00029195,2]
[327672621,1716305441135,-888.90699596,0.00029195,2]
[327672622,1716305441144,-157.39320294,0.00029247,2]
[327672623,1716305441154,-156.34,0.00029349,2]
[327672624,1716305441163,-374.25206088,0.00029424,2]
[327672625,1716305441173,-2918.87813659,0.00029425,2]
[327672626,1716305441182,-29162.5511829,0.00029426,14]
[327672627,1716305441195,-4310.01085763,0.00029426,14]
[327672628,1716305441206,-1743.97459539,0.00029426,14]
[327672629,1716305441219,-26359.79080151,0.00029426,14]
[327672630,1716305441235,-455.49351259,0.00029426,14]
[327672662,1716305444844,-2905.85686451,0.00029426,14]
[327672663,1716305444856,-1681.90229546,0.00029426,14]
[327672666,1716305444896,-426.84914832,0.00029426,14]
[327672668,1716305444906,-160.23933138,0.00029677,2]
[327672670,1716305444916,-178.03184864,0.00029755,2]
[327672672,1716305444925,-150.0,0.00029812,2]
[327672674,1716305444935,-596.26,0.0002991,2]
[327672676,1716305444945,-7457.43326068,0.00029999,2]
[327672679,1716305444959,-9889.06691106,0.00029999,2]
[327672681,1716305444970,-1155.269027,0.0003,9]
[327672683,1716305444978,-250.0,0.000301,15]
[327672685,1716305444988,-150.0,0.00030167,2]
[327672687,1716305444998,-150.0,0.00030176,2]
[327672689,1716305445008,-195.48762453,0.00030242,7]
[327672691,1716305445017,-150.0,0.00030288,2]
[327672693,1716305445027,-800.0,0.00030384,2]
[327672695,1716305445037,-150.0,0.00030409,2]
[327672697,1716305445046,-150.0,0.00030447,2]
[327672699,1716305445056,-150.0,0.00030534,2]
[327672701,1716305445066,-150.0,0.00030542,2]
[327672703,1716305445076,-150.0,0.00030545,2]
[327672705,1716305445086,-157.39320294,0.0003063,7]
[327672707,1716305445096,-150.0,0.00030695,2]
[327672709,1716305445105,-150.0,0.00030737,2]
[327672711,1716305445115,-150.0,0.00030852,2]
[327672713,1716305445124,-150.0,0.00030863,2]
[327672715,1716305445134,-150.0,0.00030901,2]
[327672717,1716305445144,-150.0,0.00030922,2]
[327672718,1716305445154,-178.03184864,0.00031041,2]
[327672719,1716305445164,-9828.00010756,0.00031264,2]
[327672720,1716305445174,-150.0,0.00031402,2]
[327672721,1716305445184,-150.0,0.00031411,2]
[327672722,1716305445194,-150.0,0.00031495,2]
[327672723,1716305445204,-150.0,0.00031498,2]
[327672724,1716305445216,-150.0,0.00031504,2]
[327672725,1716305445226,-150.0,0.00031515,2]
[327672726,1716305445238,-150.0,0.00031522,2]
[327672727,1716305445251,-150.0,0.00031539,2]
[327672728,1716305445261,-152.76200048,0.00031607,7]
[327672729,1716305445271,-150.0,0.00031632,2]
[327672730,1716305445282,-150.0,0.00031634,2]
[327672731,1716305445292,-150.0,0.00031638,2]
[327672732,1716305445303,-150.0,0.00031696,2]
[327672733,1716305445313,-150.0,0.00031726,2]
[327672734,1716305445326,-1000.0,0.00031786,2]
[327672735,1716305445336,-150.0,0.00031847,2]
[327672736,1716305445346,-150.0,0.00031905,2]
[327672737,1716305445356,-150.0,0.00031932,2]
[327672738,1716305445366,-150.0,0.00031952,2]
[327672739,1716305445376,-150.0,0.00031975,2]
[327672740,1716305445386,-1133.13821331,0.00032,12]
[327672741,1716305445398,-366.86178669,0.00032,12]
[327672742,1716305445408,-150.0,0.00032041,2]
[327672743,1716305445418,-150.0,0.00032064,2]
[327672744,1716305445428,-150.0,0.00032108,2]
[327672745,1716305445733,-596.26,0.00032174,2]
[327672746,1716305445764,-9564.71378136,0.00032181,4]
[327672748,1716305445776,-1298.18587077,0.00032182,4]
[327672750,1716305445785,-150.0,0.00032202,2]
[327672751,1716305445795,-150.0,0.0003223,2]
[327672752,1716305445805,-150.0,0.00032281,2]
[327672753,1716305445815,-150.0,0.00032316,2]
[327672754,1716305445824,-178.03184864,0.00032327,2]
[327672755,1716305445834,-184.00534439,0.00032369,7]
[327672756,1716305445843,-150.0,0.00032439,2]
[327672757,1716305445853,-150.0,0.00032534,2]
[327672758,1716305445862,-150.0,0.00032572,2]
[327672759,1716305445871,-150.0,0.00032601,2]
[327672760,1716305445881,-150.0,0.00032607,2]
[327672761,1716305445891,-150.0,0.00032637,2]
[327672762,1716305445900,-18257.54168331,0.00032681,14]
[327672763,1716305445910,-10939.94571933,0.00032683,4]
[327672764,1716305445919,-158.19,0.00032696,120]
[327672765,1716305445928,-150.0,0.00032726,2]
[327672766,1716305445938,-150.0,0.00032763,2]
[327672767,1716305445948,-150.0,0.00032811,2]
[327672768,1716305445958,-150.0,0.00032858,2]
[327672769,1716305445968,-800.0,0.000329,12]
[327672770,1716305445978,-150.0,0.0003293,2]
[327672771,1716305445988,-150.0,0.0003298,2]
[327672772,1716305445997,-150.0,0.00033133,2]
[327672773,1716305446006,-150.0,0.00033159,2]
[327672774,1716305446016,-2604.3520118,0.00033202,4]
[327672775,1716305446025,-150.0,0.00033208,2]
[327672776,1716305446035,-150.0,0.00033267,2]
[327672777,1716305446045,-150.0,0.00033296,2]
[327672778,1716305446055,-150.0,0.00033298,2]
[327672779,1716305446065,-9828.00010756,0.00033332,2]
[327672780,1716305446074,-150.0,0.00033388,2]
[327672781,1716305446083,-152.76200049,0.00033411,7]
[327672782,1716305446092,-150.0,0.00033449,2]
[327672783,1716305446102,-150.0,0.00033477,2]
[327672784,1716305446111,-150.0,0.00033487,2]
[327672785,1716305446121,-1563.85586632,0.00033497,2]
[327672786,1716305446135,-3645.18,0.000335,2]
[327672787,1716305446145,-3645.18,0.000335,2]
[327672788,1716305446154,-3645.18,0.000335,2]
[327672789,1716305446164,-3645.18,0.000335,2]
[327672790,1716305446173,-3645.18,0.000335,2]
[327672791,1716305446184,-3645.18,0.000335,2]
[327672792,1716305446194,-3645.18,0.000335,2]
[327672793,1716305446204,-3645.18,0.000335,2]
[327672794,1716305446214,-3645.18,0.000335,2]
[327672795,1716305446228,-3645.18,0.000335,2]
[327672796,1716305446240,-3645.18,0.000335,2]
[327672797,1716305446250,-1344.17184505,0.000335,2]
[327672829,1716305446616,-2301.00815495,0.000335,2]
[327672830,1716305446626,-3645.18,0.000335,2]
[327672831,1716305446636,-3645.18,0.000335,2]
[327672832,1716305446646,-3645.18,0.000335,2]
[327672833,1716305446656,-3645.18,0.000335,2]
[327672834,1716305446666,-3645.18,0.000335,2]
[327672835,1716305446675,-3645.18,0.000335,2]
[327672836,1716305446685,-3645.18,0.000335,2]
[327672837,1716305446695,-3645.18,0.000335,2]
[327672838,1716305446705,-153.6,0.000335,2]
[327672839,1716305446714,-153.6,0.000335,2]
[327672840,1716305446726,-153.6,0.000335,2]
[327672841,1716305446736,-153.6,0.000335,2]
[327672842,1716305446747,-153.6,0.000335,2]
[327672843,1716305446757,-153.6,0.000335,2]
[327672844,1716305446766,-153.6,0.000335,2]
[327672845,1716305446776,-153.6,0.000335,2]
[327672846,1716305446786,-153.6,0.000335,2]
[327672847,1716305446796,-153.6,0.000335,2]
[327672848,1716305446806,-252.27923315,0.00033539,4]
[327672849,1716305446816,-1479.31995,0.0003354,2]
[327672850,1716305446826,-8735.89126676,0.0003355,2]
[327672851,1716305446837,-150.0,0.00033592,2]
[327672852,1716305446848,-178.03184864,0.00033614,2]
[327672853,1716305446858,-150.0,0.00033634,2]
[327672854,1716305446868,-14845.03446367,0.0003368,5]
[327672855,1716305446878,-248.1438063,0.0003368,5]
[327672856,1716305446887,-174.44609527,0.000337,5]
[327672857,1716305446896,-1700.0,0.000337,12]
[327672858,1716305446907,-200.74376142,0.00033711,2]
[327672859,1716305446916,-3149.75832566,0.00033739,2]
[327672860,1716305446926,-150.66,0.0003377,2]
[327672861,1716305446937,-150.66,0.0003377,2]
[327672862,1716305446946,-163.18099655,0.0003377,2]
[327672863,1716305446957,-150.66,0.0003377,2]
[327672864,1716305446968,-150.66,0.0003377,2]
[327672865,1716305446977,-150.66,0.0003377,2]
[327672866,1716305446987,-154.16360863,0.00033777,2]
[327672867,1716305446996,-454016.08405866,0.0003378,17]
[327672868,1716305447006,-173.36185652,0.0003378,6]
[327672869,1716305447016,-38304.72685728,0.0003378,2]
[327672870,1716305447028,-766.24657314,0.0003378,2]
[327672871,1716305447232,-5079.69634499,0.00029425,2]
[327672872,1716305447247,-1064.16497992,0.00029425,2]
[327672873,1716305447257,-2654.26353866,0.0003378,2]
[327672874,1716305447579,-307.92501093,0.00029425,2]
[327672875,1716305447589,-48.17198894,0.0003378,2]
[327672876,1716305447600,-692.00191609,0.0003378,2]
[327672877,1716305447612,-202534.58912589,0.0003378,2]
[327672878,1716305447622,-500.0,0.0003378,2]
[327672879,1716305447631,-159.86030902,0.0003378,2]
[327672880,1716305447640,-794.2984,0.0003378,2]
[327672881,1716305447650,-1000.0,0.0003378,2]
[327672882,1716305447659,-39182.283,0.0003378,2]
[327672883,1716305447669,-100000.0,0.0003378,2]
[327672884,1716305447678,-150.33355054,0.0003378,2]
[327672885,1716305447688,-178.54738462,0.0003378,2]
[327672886,1716305447697,-189.11860099,0.0003378,2]
[327672887,1716305447707,-150.66,0.0003379,2]
[327672888,1716305447717,-150.66,0.0003379,2]
[327672889,1716305447726,-150.66,0.0003379,2]
[327672890,1716305447735,-150.66,0.0003379,2]
[327672891,1716305447745,-163.18099655,0.0003379,2]
[327672892,1716305447754,-413124.71934951,0.000338,7]
[327672893,1716305624483,625355.24886136,0.00013,2]
[327672894,1716305624514,3779291.22136925,0.00013,2]
[327672895,1716305666603,168544.70605177,0.00013,2]
[327672897,1716305802869,325279.93242087,0.00013,2]
[327672898,1716305872162,745.58468343,0.00013,2]
[327672899,1716305876351,2605.01235126,0.0001274,2]
[327672900,1716305880570,448.79290629,0.00013,2]
[327672901,1716305880618,49088.39131492,0.00013,2]
[327672902,1716305881896,955.89067804,0.0001235,2]
[327672903,1716305898821,2605.01235126,0.0001274,2]
[327672904,1716305905870,955.89067804,0.0001235,2]
[327672905,1716305918353,1976.96549241,0.0001274,2]
[327672906,1716305919599,158.25,0.00013973,2]
[327672907,1716305921879,955.89067804,0.0001235,2]
[327672908,1716305925989,8948.59023655,0.00013,2]
[327672909,1716305935544,2548.1738579,9.75e-05,2]
[327672910,1716305941909,879.34136405,0.0001235,2]
[327672911,1716305951538,521.43345762,9.75e-05,2]
[327672912,1716306254898,160.18,0.00025176,120]
[327672913,1716306339127,-540.5603633,0.00015998,2]
[327672914,1716306363403,-268.32530534,0.00015995,2]
[327672915,1716306363426,-306.37473052,0.00015996,2]
[327672916,1716306363449,-4598.04156785,0.00015996,2]
[327672917,1716306363471,-2186.8060043,0.00015997,2]
[327672918,1716306363494,-155.0,0.00015997,2]
[327672919,1716306363526,-12485.45239199,0.00015997,2]
[327672920,1716306427151,-1214.6689213,0.0001599,2]
[327672921,1716306427174,-488.97987552,0.00015991,2]
[327672922,1716306427196,-656.59256229,0.00015992,2]
[327672923,1716306427218,-155.0,0.00015993,2]
[327672924,1716306427239,-4744.24987761,0.00015993,2]
[327672925,1716306427260,-423.50395095,0.00015994,2]
[327672926,1716306427282,-730.20671212,0.00015994,2]
[327672930,1716306545099,-3061.76218889,0.00015972,2]
[327672931,1716306545119,-3009.22259408,0.00015973,2]
[327672932,1716306545139,-2918.87813659,0.00015973,2]
[327672933,1716306545159,-423.50395095,0.00015974,2]
[327672934,1716306545179,-10528.10044356,0.00015974,2]
[327672935,1716306545199,-1159.63298593,0.00015975,2]
[327672936,1716306546176,-9780.3127334,0.00015975,2]
[327672937,1716306546198,-5792.69692528,0.00015977,2]
[327672938,1716306546219,-150.0,0.00015989,2]
[327672939,1716306546239,-3478.4943502,0.00015991,2]
[327672940,1716306546260,-1240.41569418,0.00015991,2]
[327672941,1716306546280,-235.95016862,0.00015991,2]
[327672942,1716306546302,-1000.0,0.00016,2]
[327672943,1716306546321,-4126.4785,0.00016698,2]
[327672944,1716306546341,-150.0,0.00016767,2]
[327672945,1716306546361,-499.99,0.00016767,2]
[327672946,1716306546382,-23317.82062832,0.000168,2]
[327672947,1716306552115,-10939.94571933,0.00015971,2]
[327672948,1716306552139,-4019.37492858,0.00015972,2]
[327672949,1716306554105,-39296.24047629,0.00015972,2]
[327672950,1716306554126,-3451.49022187,0.000168,2]
[327672951,1716306554146,-571.84405853,0.00016816,2]
[327672952,1716306569170,-2869.0866,0.00016937,2]
[327672953,1716306569192,-5079.69634499,0.00017,2]
[327672954,1716306569216,-877.05966349,0.00017,6]
[327672966,1716306631859,-630.63,0.00017,6]
[327672967,1716306631872,-1175.18033651,0.00017,6]
[327672968,1716306631881,-603.37,0.00017,2]
[327672969,1716306631891,-295.52027983,0.00017027,2]
[327672970,1716306631900,-1381.21503003,0.00017028,2]
[327672971,1716306631910,-2160.68,0.00017156,2]